bitfinex/quotes_BTCUSD_20241025
["timestamp","ask_amount","ask_price","bid_price","bid_amount"]
[1729893607104,0.04458292,67279.0,67278.0,0.445909]
[1729893607318,0.06687438,67280.0,67279.0,0.148634]
[1729893607539,0.06687438,67281.0,67278.0,0.297273]
[1729893607745,0.06687438,67281.0,67280.0,0.148632]
[1729893607946,0.0891657,67282.0,67280.0,0.148632]
[1729893608397,0.0891657,67282.0,67279.0,0.297269]
[1729893608398,0.06687603,67281.0,67277.0,0.166]
[1729893608693,0.06687603,67279.0,67278.0,0.148636]
[1729893609412,0.06687603,67279.0,67277.0,0.463278]
[1729893609413,0.16458373,67279.0,67277.0,0.166]
[1729893609619,0.06687846,67279.0,67278.0,0.148635]
[1729893610074,0.16458034,67279.0,67278.0,0.148635]
[1729893610299,0.0891657,67280.0,67278.0,0.148635]
[1729893610511,0.25374837,67279.0,67278.0,0.148635]
[1729893610730,0.23966951,67279.0,67274.0,0.148645]
[1729893610944,0.23966951,67279.0,67273.0,0.0752]
[1729893610945,0.06687873,67275.0,67273.0,0.0752]
[1729893611178,0.06687873,67275.0,67268.0,0.0752]
[1729893611179,0.15050381,67274.0,67268.0,0.0752]
[1729893611389,0.0891657,67271.0,67269.0,0.22370531]
[1729893611595,0.06688345,67270.0,67269.0,0.148656]
[1729893611794,0.27605184,67271.0,67269.0,0.148656]
[1729893612021,0.16459472,67270.0,67269.0,0.148656]
[1729893612219,0.25375657,67270.0,67269.0,0.148656]
[1729893612371,0.08916185,67270.0,67269.0,0.148656]
[1729893612583,0.16459472,67270.0,67268.0,0.297317]
[1729893612798,0.0668707,67269.0,67268.0,0.445976]
[1729893613371,0.0668707,67269.0,67266.0,0.148662]
[1729893613583,0.04457319,67267.0,67266.0,0.148663]
[1729893615332,0.15386708,67267.0,67263.0,0.076844]
[1729893615534,0.10929389,67264.0,67263.0,0.150314]
[1729893616277,0.04456082,67266.0,67263.0,0.298983]
[1729893616477,0.04456082,67266.0,67265.0,0.148665]
[1729893618269,0.04456082,67267.0,67265.0,0.148665]
[1729893618468,0.04456082,67267.0,67263.0,0.001644]
[1729893618469,0.04456082,67267.0,67263.0,0.150312]
[1729893618701,0.04456082,67267.0,67264.0,0.148666]
[1729893618942,0.04456082,67267.0,67265.0,0.148664]
[1729893619145,0.04456082,67267.0,67264.0,0.446002]
[1729893619479,0.04456082,67267.0,67265.0,0.148665]
[1729893619685,0.04456082,67267.0,67264.0,0.297335]
[1729893619895,0.04456082,67267.0,67265.0,0.148665]
[1729893620354,0.10929389,67266.0,67265.0,0.148665]
[1729893624687,0.10929389,67266.0,67265.0,0.150309]
[1729893625352,0.10929389,67266.0,67265.0,0.001644]
[1729893627844,0.2597977,67266.0,67265.0,0.001644]
[1729893628053,0.4084607,67266.0,67265.0,0.001644]
[1729893628270,0.45302152,67266.0,67265.0,0.001644]
[1729893628476,0.30435852,67266.0,67265.0,0.001644]
[1729893628681,0.4084607,67266.0,67265.0,0.001644]
[1729893629759,0.2597977,67266.0,67265.0,0.001644]
[1729893630182,0.30432139,67266.0,67265.0,0.001644]
[1729893631839,0.1950275,67266.0,67265.0,0.178544]
[1729893632502,0.04452369,67266.0,67265.0,0.327209]
[1729893632913,0.04452369,67267.0,67266.0,0.148663]
[1729893633137,0.04452369,67268.0,67265.0,0.475874]
[1729893633352,0.04452369,67269.0,67268.0,0.148659]
[1729893633554,0.15050381,67269.0,67268.0,0.148659]
[1729893634719,0.1950245,67269.0,67268.0,0.148659]
[1729893634926,0.15050381,67269.0,67268.0,0.148659]
[1729893635573,0.19502561,67269.0,67268.0,0.148659]
[1729893635773,0.15050381,67269.0,67268.0,0.325559]
[1729893639041,0.04452327,67270.0,67269.0,0.321756]
[1729893639280,0.04452327,67271.0,67270.0,0.148654]
[1729893639697,0.04452327,67272.0,67271.0,0.148652]
[1729893639908,0.19502708,67272.0,67271.0,0.148652]
[1729893640624,0.15050381,67272.0,67271.0,0.148652]
[1729893641027,0.15050381,67272.0,67269.0,0.1731]
[1729893641028,0.21729215,67272.0,67269.0,0.1731]
[1729893641233,0.21729215,67272.0,67270.0,0.148654]
[1729893642465,0.06678834,67271.0,67270.0,0.148654]
[1729893642922,0.21729215,67272.0,67270.0,0.148654]
[1729893643086,0.21729215,67272.0,67271.0,0.321752]
[1729893643087,0.06678834,67272.0,67271.0,0.321752]
[1729893643540,0.08907845,67277.0,67276.0,0.321739]
[1729893643757,0.08907845,67278.0,67276.0,0.321739]
[1729893644001,0.25348671,67277.0,67276.0,0.321739]
[1729893644435,0.08907845,67277.0,67276.0,0.321739]
[1729893644653,0.06681374,67277.0,67276.0,0.321739]
[1729893644860,0.16442465,67277.0,67276.0,0.1731]
[1729893645065,0.25351542,67277.0,67276.0,0.1731]
[1729893645263,0.25352087,67277.0,67276.0,0.1731]
[1729893645476,0.08908901,67277.0,67276.0,0.1731]
[1729893646146,0.08908901,67277.0,67276.0,0.321741]
[1729893646361,0.25352087,67277.0,67276.0,0.321741]
[1729893646574,0.06682216,67277.0,67276.0,0.148641]
[1729893646825,0.08908901,67278.0,67276.0,0.148641]
[1729893647060,0.06682121,67277.0,67276.0,0.148641]
[1729893647283,0.06682121,67277.0,67276.0,0.321741]
[1729893647945,0.08908901,67278.0,67276.0,0.321741]
[1729893648165,0.08908901,67278.0,67277.0,0.243439]
[1729893648392,0.15050381,67279.0,67277.0,0.243439]
[1729893648393,0.25353308,67279.0,67277.0,0.1731]
[1729893648622,0.08908901,67279.0,67278.0,0.321736]
[1729893648846,0.08991101,67280.0,67279.0,0.148634]
[1729893649064,0.2543536,67280.0,67279.0,0.321734]
[1729893649966,0.06764304,67280.0,67279.0,0.321734]
[1729893650187,0.04536681,67280.0,67279.0,0.321734]
[1729893650412,0.000822,67280.0,67279.0,0.321734]
[1729893666518,0.000822,67280.0,67279.0,0.326734]
[1729893669453,0.000822,67280.0,67279.0,0.336734]
[1729893670366,0.000822,67280.0,67279.0,0.338378]
[1729893670975,0.000822,67280.0,67279.0,0.48888181]
[1729893671174,0.000822,67280.0,67279.0,0.49088181]
[1729893671451,0.000822,67280.0,67279.0,0.48888181]
[1729893672267,0.000822,67280.0,67279.0,0.49353293]
[1729893675304,0.000822,67280.0,67279.0,0.48888181]
[1729893675548,0.000822,67280.0,67279.0,0.49353286]
[1729893686919,0.000822,67280.0,67279.0,0.49553286]
[1729893687127,0.000822,67280.0,67279.0,0.49353286]
[1729893689564,0.000822,67280.0,67279.0,0.71723817]
[1729893689784,0.000822,67280.0,67279.0,0.49353286]
[1729893690008,0.000822,67280.0,67279.0,0.49553252]
[1729893691337,0.000822,67280.0,67279.0,0.5416099]
[1729893697448,0.000822,67280.0,67279.0,0.53695919]
[1729893697895,0.000822,67280.0,67279.0,0.54160987]
[1729893698330,0.000822,67280.0,67279.0,0.53695919]
[1729893699882,0.000822,67280.0,67279.0,0.54160987]
[1729893700997,0.000822,67280.0,67279.0,0.53960987]
[1729893701411,0.000822,67280.0,67279.0,0.53495919]
[1729893703642,0.000822,67280.0,67279.0,0.53695919]
[1729893704286,0.000822,67280.0,67279.0,0.53495919]
[1729893710141,0.000822,67280.0,67279.0,0.7586645]
[1729893710355,0.000822,67280.0,67279.0,0.53495919]
[1729893724383,0.000822,67280.0,67279.0,0.60127028]
[1729893724607,0.000842,67289.0,67288.0,0.153614]
[1729893724857,0.000842,67289.0,67288.0,0.59668357]
[1729893725095,0.000842,67289.0,67288.0,0.5937117]
[1729893726434,0.00129,67300.0,67288.0,0.5937117]
[1729893726435,0.26629408,67302.0,67301.0,0.148586]
[1729893726886,0.04258877,67302.0,67301.0,0.148586]
[1729893728664,0.04258877,67302.0,67301.0,0.37229131]
[1729893728890,0.04258877,67302.0,67301.0,0.148586]
[1729893729571,0.06692216,67305.0,67304.0,0.148579]
[1729893730016,0.16462531,67306.0,67305.0,0.148577]
[1729893730017,0.08922955,67306.0,67305.0,0.148577]
[1729893730245,9e-05,67307.0,67304.0,0.297158]
[1729893730246,0.08931955,67307.0,67304.0,0.297158]
[1729893730467,0.06689542,67305.0,67304.0,0.297158]
[1729893730688,0.06689542,67305.0,67304.0,0.445737]
[1729893730940,0.06698542,67307.0,67304.0,0.297158]
[1729893731157,0.06698542,67307.0,67306.0,0.148575]
[1729893732068,9e-05,67307.0,67306.0,0.148575]
[1729893733204,0.30689381,67307.0,67292.0,0.297212]
[1729893733429,0.30689381,67307.0,67290.0,0.005]
[1729893733430,0.29259923,67306.0,67300.0,0.22370531]
[1729893733636,0.29259923,67306.0,67301.0,0.148584]
[1729893733837,0.36597523,67306.0,67303.0,0.22370531]
[1729893734063,0.36597523,67306.0,67305.0,0.148577]
[1729893734064,0.06689542,67306.0,67305.0,0.148577]
[1729893734688,0.08931955,67307.0,67306.0,0.148575]
[1729893734895,0.25388784,67307.0,67306.0,0.148575]
[1729893735105,0.25388784,67307.0,67304.0,0.445735]
[1729893735318,0.06687219,67305.0,67304.0,0.445735]
[1729893736650,0.06687219,67305.0,67304.0,0.148577]
[1729893738404,0.06769419,67305.0,67304.0,0.148577]
[1729893739042,0.000822,67305.0,67304.0,0.148577]
[1729893749076,0.000822,67305.0,67304.0,0.143577]
[1729893750415,0.000822,67305.0,67304.0,0.240477]
[1729893753555,0.000822,67305.0,67304.0,0.235477]
[1729893761373,0.000822,67305.0,67304.0,0.237121]
[1729893765325,0.000822,67305.0,67304.0,0.001644]
[1729893765326,0.081922,67305.0,67304.0,0.001644]
[1729893765561,0.65462341,67305.0,67304.0,0.001644]
[1729893765791,0.73006765,67305.0,67304.0,0.001644]
[1729893766277,0.73006765,67305.0,67279.0,0.001644]
[1729893766278,0.37488778,67302.0,67291.0,0.297215]
[1729893766509,0.61224676,67301.0,67299.0,0.22370531]
[1729893766728,0.148592,67298.0,67294.0,0.148601]
[1729893766952,0.08916365,67295.0,67294.0,0.148601]
[1729893767188,0.08916365,67295.0,67293.0,0.297207]
[1729893767189,0.16457095,67295.0,67293.0,0.297207]
[1729893767400,0.08916365,67296.0,67295.0,0.148599]
[1729893767651,0.04457114,67296.0,67291.0,0.387212]
[1729893767890,0.04457114,67296.0,67295.0,0.148599]
[1729893768125,0.21736482,67298.0,67296.0,0.148597]
[1729893768335,0.21736482,67298.0,67291.0,0.387212]
[1729893768336,0.06686101,67298.0,67297.0,0.148595]
[1729893768760,0.08916365,67300.0,67293.0,0.594414]
[1729893768761,0.06686101,67299.0,67293.0,0.594414]
[1729893768988,0.04456786,67297.0,67291.0,0.09]
[1729893769208,0.04456786,67297.0,67296.0,0.148597]
[1729893769435,0.06686101,67298.0,67297.0,0.148595]
[1729893770355,0.148576,67306.0,67302.0,0.148582]
[1729893770583,0.31500834,67304.0,67302.0,0.148582]
[1729893770810,0.16450453,67303.0,67302.0,0.148583]
[1729893771050,0.27590363,67303.0,67302.0,0.148583]
[1729893771264,0.000822,67305.0,67300.0,0.297174]
[1729893771265,0.04537506,67305.0,67304.0,0.148579]
[1729893771493,0.000822,67305.0,67304.0,0.148579]
[1729893776336,0.000822,67305.0,67304.0,0.320679]
[1729893779226,0.000822,67305.0,67304.0,0.6536782]
[1729893779477,0.000822,67305.0,67304.0,0.42997289]
[1729893781887,0.000822,67305.0,67304.0,0.320679]
[1729893782127,0.000822,67305.0,67304.0,0.148579]
[1729893783506,0.000822,67305.0,67304.0,0.43277289]
[1729893787453,0.000822,67305.0,67304.0,0.81198201]
[1729893787669,0.000822,67305.0,67304.0,0.5982767]
[1729893788110,0.000822,67305.0,67304.0,0.64417814]
[1729893788331,0.000822,67305.0,67304.0,0.75347203]
[1729893788541,0.000822,67305.0,67304.0,0.70757059]
[1729893788965,0.000822,67305.0,67304.0,0.60485815]
[1729893790224,0.000822,67305.0,67304.0,0.66525584]
[1729893795236,0.000822,67305.0,67304.0,0.65525584]
[1729893795450,0.000822,67305.0,67304.0,0.66525584]
[1729893799109,0.22370531,67320.0,67319.0,0.148546]
[1729893799320,0.22370531,67336.0,67319.0,0.148546]
[1729893799321,0.22370531,67336.0,67323.0,0.153537]
[1729893799531,0.22370531,67336.0,67323.0,0.47974081]
[1729893799996,0.22370531,67336.0,67323.0,0.324237]
[1729893799997,0.22370531,67327.0,67323.0,0.324237]
[1729893800223,0.22659388,67326.0,67323.0,0.324237]
[1729893800472,0.00288857,67326.0,67323.0,0.148537]
[1729893802076,0.00288857,67326.0,67306.0,0.0823]
[1729893802077,0.0752,67323.0,67306.0,0.0823]
[1729893802288,0.0752,67323.0,67318.0,0.297096]
[1729893802732,0.0752,67323.0,67321.0,0.148541]
[1729893802955,0.0752,67323.0,67322.0,0.148539]
[1729893803187,0.00288857,67326.0,67323.0,0.148537]
[1729893803661,0.00288857,67326.0,67323.0,0.230837]
[1729893806647,0.00288857,67326.0,67323.0,0.6130166]
[1729893806886,0.00288857,67326.0,67323.0,0.38634081]
[1729893807112,0.00288857,67326.0,67323.0,0.47974081]
[1729893810717,0.00288857,67326.0,67323.0,0.324237]
[1729893812258,0.00288857,67326.0,67323.0,0.47974081]
[1729893816487,0.00288857,67326.0,67323.0,0.71344612]
[1729893816776,0.00288857,67326.0,67323.0,0.49174081]
[1729893817454,0.00017999,67338.0,67337.0,0.005]
[1729893817670,0.00017999,67338.0,67337.0,0.48970981]
[1729893817891,0.00017999,67338.0,67337.0,0.47970981]
[1729893818366,0.00017999,67338.0,67337.0,0.324206]
[1729893818601,0.00017999,67338.0,67337.0,0.148506]
[1729893825837,0.00017999,67338.0,67337.0,0.15147598]
[1729893826060,0.00017999,67338.0,67337.0,0.231406]
[1729893826732,0.00017999,67338.0,67337.0,0.23437575]
[1729893826968,0.00017999,67338.0,67337.0,0.38987956]
[1729893827177,0.00017999,67338.0,67337.0,0.48580981]
[1729893827412,0.00017999,67338.0,67337.0,0.66550139]
[1729893829912,0.00017999,67338.0,67337.0,0.67213221]
[1729893830812,0.00017999,67338.0,67337.0,0.66550139]
[1729893831252,0.00100199,67338.0,67337.0,0.231406]
[1729893833262,0.296942,67353.0,67347.0,0.148483]
[1729893833546,0.296942,67353.0,67345.0,0.296975]
[1729893833547,0.15050381,67353.0,67345.0,0.296975]
[1729893833753,0.29897681,67353.0,67348.0,0.148482]
[1729893833959,0.29897481,67353.0,67349.0,0.148479]
[1729893834171,0.34337832,67353.0,67345.0,0.296975]
[1729893834385,0.34337832,67353.0,67343.0,0.296985]
[1729893834597,0.34337832,67353.0,67338.0,0.297008]
[1729893834598,0.34337832,67353.0,67348.0,0.148481]
[1729893835524,0.296947,67352.0,67345.0,0.148489]
[1729893835737,0.46666658,67346.0,67345.0,0.22370531]
[1729893835957,0.84085739,67346.0,67345.0,0.22370531]
[1729893836226,0.148489,67345.0,67341.0,0.148496]
[1729893836449,0.15050381,67345.0,67342.0,0.148495]
[1729893836674,0.15050381,67345.0,67340.0,0.297]
[1729893836675,0.0752,67352.0,67332.0,0.0979]
[1729893836884,0.0752,67352.0,67349.0,0.148478]
[1729893837524,0.0752,67352.0,67347.0,0.296967]
[1729893837731,0.0752,67352.0,67348.0,0.148481]
[1729893837955,0.0752,67352.0,67349.0,0.148479]
[1729893838163,0.0752,67352.0,67347.0,0.148484]
[1729893838164,0.148475,67351.0,67347.0,0.148484]
[1729893838285,0.148475,67351.0,67345.0,0.296978]
[1729893838286,0.0752,67352.0,67348.0,0.148481]
[1729893838485,0.0752,67352.0,67345.0,0.296978]
[1729893838771,0.0752,67352.0,67332.0,0.0979]
[1729893838930,0.0752,67352.0,67348.0,0.148481]
[1729893839152,0.0752,67352.0,67335.0,0.297022]
[1729893839355,0.0752,67352.0,67348.0,0.148481]
[1729893839356,0.223674,67352.0,67348.0,0.148481]
[1729893840163,0.223674,67352.0,67342.0,0.22370531]
[1729893840164,0.0752,67352.0,67342.0,0.22370531]
[1729893840564,0.04443479,67351.0,67350.0,0.148478]
[1729893840999,0.14186043,67352.0,67351.0,0.148475]
[1729893842128,0.296951,67351.0,67334.0,0.22370531]
[1729893842381,0.04444952,67346.0,67341.0,0.22370531]
[1729893842571,0.09388057,67349.0,67326.0,0.083844]
[1729893842572,0.148508,67336.0,67335.0,0.22370531]
[1729893842813,0.29901181,67336.0,67335.0,0.22370531]
[1729893843017,0.19496572,67336.0,67335.0,0.22370531]
[1729893843256,0.19496572,67336.0,67328.0,0.297051]
[1729893843257,0.15050381,67336.0,67332.0,0.297032]
[1729893843466,0.04446191,67337.0,67336.0,0.148508]
[1729893843691,0.19496572,67337.0,67336.0,0.148508]
[1729893844136,0.15050381,67337.0,67336.0,0.148508]
[1729893844552,0.19496572,67337.0,67336.0,0.148508]
[1729893845962,0.19496572,67337.0,67333.0,0.297029]
[1729893846420,0.16969158,67335.0,67326.0,0.001644]
[1729893846634,0.15273158,67334.0,67330.0,0.148521]
[1729893846869,0.15273158,67334.0,67326.0,0.001644]
[1729893846870,0.16969158,67331.0,67326.0,0.001644]
[1729893847103,0.31821958,67327.0,67326.0,0.001644]
[1729893847353,0.31821958,67327.0,67312.0,0.001644]
[1729893847354,0.148559,67313.0,67312.0,0.001644]
[1729893847582,0.36272637,67313.0,67312.0,0.001644]
[1729893847813,0.59862738,67313.0,67312.0,0.001644]
[1729893848042,0.57263789,67313.0,67312.0,0.001644]
[1729893848514,0.67873716,67313.0,67312.0,0.001644]
[1729893848810,0.57263789,67313.0,67312.0,0.001644]
[1729893849413,0.47506471,67313.0,67312.0,0.001644]
[1729893849643,0.62556852,67313.0,67312.0,0.001644]
[1729893849880,0.16969158,67303.0,67300.0,0.22370531]
[1729893850110,0.15050381,67302.0,67301.0,0.148586]
[1729893851052,0.22370531,67311.0,67299.0,0.001644]
[1729893851310,0.15050381,67310.0,67308.0,0.14857]
[1729893851545,0.01108277,67309.0,67308.0,0.14857]
[1729893851784,0.16158658,67309.0,67308.0,0.14857]
[1729893852951,0.01108277,67309.0,67308.0,0.14857]
[1729893853188,0.005,67312.0,67309.0,0.148567]
[1729893853412,0.15050381,67311.0,67309.0,0.148566]
[1729893853635,0.15050381,67311.0,67308.0,0.297141]
[1729893853878,0.15050381,67311.0,67310.0,0.148566]
[1729893854335,0.15050381,67311.0,67305.0,0.297154]
[1729893854569,0.15050381,67311.0,67309.0,0.148566]
[1729893855042,0.22370531,67310.0,67300.0,0.297176]
[1729893855270,0.29907381,67309.0,67304.0,0.148579]
[1729893855951,0.29907381,67309.0,67305.0,0.148576]
[1729893856186,0.29907381,67309.0,67308.0,0.001644]
[1729893856464,0.15050381,67309.0,67308.0,0.001644]
[1729893856702,0.15050381,67309.0,67308.0,0.150214]
[1729893857763,0.15050381,67309.0,67308.0,0.001644]
[1729893857997,0.29907181,67309.0,67308.0,0.001644]
[1729893858226,0.29907181,67309.0,67308.0,0.00054537]
[1729893858926,0.47376339,67309.0,67308.0,0.00054537]
[1729893859412,0.64006339,67309.0,67308.0,0.00054537]
[1729893862194,0.55896339,67309.0,67308.0,0.00054537]
[1729893862412,0.005,67304.0,67299.0,0.001644]
[1729893862625,0.15050381,67303.0,67301.0,0.148585]
[1729893863304,0.15050381,67303.0,67299.0,0.298823]
[1729893863984,0.15050381,67303.0,67300.0,0.148588]
[1729893866445,0.148584,67302.0,67299.0,0.001644]
[1729893866675,0.15050381,67301.0,67300.0,0.148588]
[1729893866886,0.15050381,67304.0,67303.0,0.148581]
[1729893868513,0.15050381,67304.0,67300.0,0.29882]
[1729893868725,0.15050381,67304.0,67303.0,0.148581]
[1729893869843,0.15044438,67304.0,67303.0,0.148581]
[1729893871364,0.148566,67310.0,67302.0,0.297167]
[1729893871365,0.153566,67310.0,67302.0,0.297167]
[1729893871575,0.15050381,67309.0,67306.0,0.148573]
[1729893871879,0.15050381,67309.0,67308.0,0.14857]
[1729893872348,0.01,67318.0,67312.0,0.14856]
[1729893872349,0.153552,67317.0,67312.0,0.14856]
[1729893872560,0.15050381,67316.0,67312.0,0.14856]
[1729893873013,0.15050381,67316.0,67306.0,0.29715]
[1729893873014,0.15050381,67316.0,67315.0,0.148555]
[1729893875250,0.0752,67331.0,67312.0,0.22370531]
[1729893875251,0.01,67326.0,67312.0,0.22370531]
[1729893875483,0.15050381,67325.0,67323.0,0.148536]
[1729893875715,0.15050381,67325.0,67311.0,0.0828]
[1729893875937,0.15050381,67325.0,67323.0,0.148535]
[1729893876377,0.15050381,67325.0,67323.0,0.148536]
[1729893877501,0.15050381,67325.0,67315.0,0.297108]
[1729893877719,0.29903781,67325.0,67321.0,0.148541]
[1729893879020,0.17469158,67324.0,67313.0,0.297115]
[1729893879259,0.22370531,67329.0,67300.0,0.001644]
[1729893879260,0.16969158,67314.0,67304.0,0.0816]
[1729893879542,0.16969158,67314.0,67311.0,0.22370531]
[1729893879543,0.1616223,67313.0,67311.0,0.22370531]
[1729893879792,0.01,67319.0,67308.0,0.29714]
[1729893879793,0.01111849,67312.0,67308.0,0.29714]
[1729893880007,0.005,67332.0,67331.0,0.148519]
[1729893880221,0.005,67331.0,67310.0,0.1733]
[1729893880448,0.15963858,67330.0,67324.0,0.148533]
[1729893880683,0.148527,67328.0,67323.0,0.148537]
[1729893880907,0.148527,67328.0,67319.0,0.297089]
[1729893880908,0.16162039,67327.0,67319.0,0.297089]
[1729893881128,0.15050381,67327.0,67326.0,0.148531]
[1729893881359,0.15050381,67327.0,67324.0,0.0816]
[1729893881360,0.01111349,67327.0,67324.0,0.0816]
[1729893881587,0.005,67332.0,67331.0,0.148519]
[1729893881800,0.16161398,67332.0,67331.0,0.148518]
[1729893884244,0.16160707,67332.0,67324.0,0.0816]
[1729893884459,0.005,67333.0,67331.0,0.148519]
[1729893884686,0.01110046,67332.0,67331.0,0.148519]
[1729893886643,0.16160427,67332.0,67331.0,0.148519]
[1729893887285,0.01110046,67332.0,67331.0,0.148519]
[1729893887494,0.01110046,67332.0,67328.0,0.297049]
[1729893887495,0.01110046,67340.0,67328.0,0.16969158]
[1729893887736,0.05,67345.0,67342.0,0.148495]
[1729893887737,0.04431386,67343.0,67342.0,0.148495]
[1729893887964,0.11647079,67345.0,67342.0,0.148495]
[1729893887965,0.05,67345.0,67344.0,0.148491]
[1729893888649,0.005,67347.0,67345.0,0.148488]
[1729893889076,0.01609074,67348.0,67345.0,0.148488]
[1729893889306,0.005,67347.0,67345.0,0.148488]
[1729893891503,0.153485,67347.0,67343.0,0.148492]
[1729893891863,0.16159455,67346.0,67344.0,0.14849]
[1729893892327,0.16159455,67346.0,67345.0,0.148489]
[1729893892328,0.01109074,67346.0,67345.0,0.148489]
[1729893892545,0.000822,67352.0,67351.0,0.148475]
[1729893892761,0.01189452,67352.0,67351.0,0.148475]
[1729893893210,0.000822,67352.0,67351.0,0.148475]
[1729893895190,0.148475,67351.0,67343.0,0.296987]
[1729893895403,0.15050381,67350.0,67346.0,0.148486]
[1729893895840,0.01107239,67349.0,67346.0,0.148486]
[1729893896051,0.15050381,67348.0,67346.0,0.148486]
[1729893896266,0.01107239,67347.0,67346.0,0.148486]
[1729893896492,0.01107239,67347.0,67336.0,0.297015]
[1729893896493,0.16157801,67347.0,67334.0,0.1733]
[1729893896692,0.296959,67350.0,67339.0,0.297004]
[1729893896693,0.16657801,67346.0,67339.0,0.297004]
[1729893896898,0.148491,67344.0,67339.0,0.148502]
[1729893897102,0.16157882,67343.0,67339.0,0.148502]
[1729893897318,0.01107501,67342.0,67340.0,0.148498]
[1729893897548,0.15050381,67341.0,67340.0,0.148498]
[1729893897752,0.16157882,67341.0,67340.0,0.148498]
[1729893898653,0.15050381,67341.0,67340.0,0.148498]
[1729893898874,0.16158508,67341.0,67336.0,0.297017]
[1729893899099,0.15050381,67341.0,67340.0,0.1485]
[1729893899328,0.16969158,67351.0,67340.0,0.1485]
[1729893899329,0.22870531,67350.0,67344.0,0.296978]
[1729893899538,0.15050381,67349.0,67344.0,0.296978]
[1729893899754,0.16158878,67349.0,67346.0,0.148486]
[1729893899994,0.01108497,67348.0,67346.0,0.148486]
[1729893900209,0.15050381,67347.0,67346.0,0.148486]
[1729893900425,0.15050381,67347.0,67346.0,0.143486]
[1729893900426,0.16158878,67347.0,67346.0,0.143486]
[1729893900645,0.16158878,67347.0,67344.0,0.14849]
[1729893900909,0.16158878,67347.0,67346.0,0.148486]
[1729893901092,0.16158878,67347.0,67338.0,0.297007]
[1729893901093,0.26608497,67346.0,67334.0,0.1729]
[1729893901321,0.005,67344.0,67336.0,0.22370531]
[1729893901556,0.15050381,67345.0,67329.0,0.0812]
[1729893901557,0.005,67339.0,67329.0,0.0812]
[1729893901793,0.148512,67335.0,67334.0,0.22370531]
[1729893902000,0.148512,67335.0,67329.0,0.0812]
[1729893902001,0.148515,67334.0,67329.0,0.0812]
[1729893902250,0.16158878,67333.0,67329.0,0.229723]
[1729893902521,0.15960397,67332.0,67328.0,0.37223131]
[1729893902743,0.16158878,67331.0,67327.0,0.0904]
[1729893902966,0.01108497,67330.0,67327.0,0.0904]
[1729893903175,0.15050381,67329.0,67328.0,0.148526]
[1729893903399,0.16158878,67329.0,67327.0,0.0904]
[1729893903617,0.01108497,67328.0,67327.0,0.238928]
[1729893904899,5e-05,67331.0,67327.0,0.238928]
[1729893904900,5e-05,67331.0,67330.0,0.148522]
[1729893908843,0.01116621,67331.0,67330.0,0.148522]
[1729893909707,0.01116621,67331.0,67328.0,0.001644]
[1729893909708,0.16167002,67331.0,67328.0,0.001644]
[1729893909935,0.148524,67329.0,67328.0,0.001644]
[1729893910153,0.31014402,67329.0,67328.0,0.001644]
[1729893911010,0.16162002,67329.0,67328.0,0.001644]
[1729893911635,0.31014402,67329.0,67328.0,0.001644]
[1729893912066,0.15050381,67329.0,67328.0,0.001644]
[1729893912293,0.31015152,67329.0,67328.0,0.001644]
[1729893912797,0.16162752,67329.0,67328.0,0.001644]
[1729893913006,0.31015152,67329.0,67328.0,0.001644]
[1729893913412,0.16162752,67329.0,67328.0,0.001644]
[1729893914719,0.01112371,67329.0,67328.0,0.15017]
[1729893916261,0.01112673,67329.0,67328.0,0.24057]
[1729893916924,5e-05,67331.0,67330.0,0.320122]
[1729893928809,5e-05,67331.0,67330.0,0.148522]
[1729893929474,5e-05,67331.0,67330.0,0.150166]
[1729893929924,5e-05,67331.0,67330.0,0.001644]
[1729893930140,5e-05,67331.0,67330.0,0.150166]
[1729893930349,0.36576063,67331.0,67330.0,0.001644]
[1729893930552,0.55229032,67331.0,67330.0,0.001644]
[1729893930774,0.46337323,67331.0,67330.0,0.001644]
[1729893931853,0.31485423,67331.0,67330.0,0.001644]
[1729893933226,0.16435042,67331.0,67330.0,0.001644]
[1729893933439,0.16435042,67331.0,67330.0,0.150166]
[1729893933876,5e-05,67331.0,67330.0,0.150166]
[1729893934299,0.25337107,67331.0,67330.0,0.150166]
[1729893934510,0.08907065,67331.0,67330.0,0.150166]
[1729893934732,5e-05,67331.0,67330.0,0.150166]
[1729893935570,0.06681248,67331.0,67330.0,0.150166]
[1729893935773,5e-05,67331.0,67330.0,0.150166]
[1729893936181,0.06681261,67331.0,67330.0,0.150166]
[1729893936629,5e-05,67331.0,67330.0,0.150166]
[1729893937716,0.15055381,67331.0,67330.0,0.001644]
[1729893937951,0.40387813,67331.0,67330.0,0.150166]
[1729893938228,0.40387815,67331.0,67330.0,0.150166]
[1729893939835,0.40387815,67331.0,67330.0,0.001644]
[1729893940072,0.4683765,67331.0,67330.0,0.001644]
[1729893940339,0.63144967,67331.0,67330.0,0.001644]
[1729893940558,0.5435765,67331.0,67330.0,0.001644]
[1729893940827,0.5555765,67331.0,67330.0,0.001644]
[1729893941057,0.68895214,67331.0,67330.0,0.001644]
[1729893941291,0.5555765,67331.0,67330.0,0.001644]
[1729893941534,0.5535765,67331.0,67330.0,0.001644]
[1729893941752,0.60886371,67331.0,67330.0,0.001644]
[1729893941969,0.5535765,67331.0,67330.0,0.001644]
[1729893942400,0.5555765,67331.0,67330.0,0.001644]
[1729893942646,0.5535765,67331.0,67330.0,0.001644]
[1729893943307,0.5555765,67331.0,67330.0,0.001644]
[1729893943537,0.5535765,67331.0,67330.0,0.001644]
[1729893944812,0.5555765,67331.0,67330.0,0.001644]
[1729893945232,0.70408031,67331.0,67330.0,0.001644]
[1729893945441,0.5535765,67331.0,67330.0,0.001644]
[1729893946923,0.56468962,67331.0,67330.0,0.001644]
[1729893947550,0.56668962,67331.0,67330.0,0.001644]
[1729893948617,0.267,67329.0,67328.0,0.001644]
[1729893948820,0.74144462,67329.0,67328.0,0.001644]
[1729893950264,0.7303315,67329.0,67328.0,0.001644]
[1729893950893,0.7283315,67329.0,67328.0,0.001644]
[1729893951137,0.7283315,67329.0,67328.0,0.15017]
[1729893951138,0.04445125,67329.0,67328.0,0.15017]
[1729893951322,0.06667688,67330.0,67328.0,0.15017]
[1729893951323,0.04444891,67330.0,67329.0,0.148524]